Cogmind - Beta 11.1 @@@ ROGUE MODE // 2022.08.21 @ 17:19:40 Player: PlasticHeart Result: Self-destructed Performance ------------- Evolutions (6) 3000 Regions Visited (25) 5000 Robots Destroyed (168) 840 Value Destroyed (3058) 3058 Prototype IDs (44) 880 Alien Tech Used (1) 200 Bonus (2429) 2429 TOTAL SCORE: 15407 Bonus ------- High Alert Combat Kills 72 Follower Combat Kills 1318 Met Data Miner 300 Met Imprinter 300 Met Warlord at Base 500 MAIN.C Attacked Warlord 500 Friendly Fire -561 Cogmind --------- Core Integrity 1030/1150 Matter 300/300 Energy 200/200 System Corruption 1% Temperature Cool (6) Movement Hovering (45) Location -4/Factory Parts ------- > --- POWER (2) -------- Micro Fission Core Micro Fission Core > --- PROPULSION (7) --- Aerolev Unit Cooled Airjet Cooled Airjet Combat Gravmag System Improved Gyrokinetic Inverter > --- UTILITY (9) ------ Large Storage Unit Advanced Signal Interpreter Experimental Core Analyzer System Mapper Advanced System Shield > --- WEAPON (2) ------- (None) > --- INVENTORY (15) --- Vortex Chain Reactor Advanced Energy Well (500) Experimental Sensor Array Improved Particle Charger Quantum Capacitor Experimental Phase Shifter Advanced Shield Generator Authchip [Propulsion] Authchip [Device] Authchip [Armor] Heavy Proton Cannon Vortex Cannon (26) CR-A16's Pointy Stick Peak State ------------ > --- POWER ------------ Micro Fission Core Micro Fission Core > --- PROPULSION ------- Aerolev Unit Aerolev Unit Cooled Airjet Cooled Airjet Cooled Airjet Combat Gravmag System Improved Gyrokinetic Inverter > --- UTILITY ---------- Advanced Heat Sink Large Storage Unit Experimental Sensor Array Advanced Signal Interpreter Experimental Targeting Computer Experimental Core Analyzer Light Regenerative Plating System Mapper Advanced System Shield > --- WEAPON ----------- Cooled Plasma Cannon Improved Datajack > --- INVENTORY -------- Vortex Chain Reactor Advanced Energy Well Experimental Sensor Array Improved Particle Charger Quantum Capacitor Experimental Phase Shifter Advanced Shield Generator Authchip [Propulsion] Authchip [Device] Authchip [Armor] Heavy Proton Cannon Vortex Cannon CR-A16's Pointy Stick [Rating: 124] Favorites ----------- Power Light Deuterium Engine Engine Light Deuterium Engine Power Core Micro Fission Core Propulsion Cooled Airjet Wheel Compact Wheel Hover Unit Cooled Airjet Utility Hacking Suite Device Experimental Sensor Array Storage Large Storage Unit Processor Improved Signal Interpreter Hackware Hacking Suite Protection Light Regenerative Plating Weapon Improved Datajack Energy Cannon Advanced Plasma Cannon Ballistic Gun Improved Assault Rifle Ballistic Cannon Improved Light Cannon Launcher Mini Grenade Launcher Special Weapon Remote Datajack Impact Weapon Powered Hammer Slashing Weapon Mining Claw Special Melee Weapon Improved Datajack Build | -11 -10 -10 -9 -9 -8 -7 -7 -7 -7 -7 -7 -6 -6 -6 -6 -6 -6 -6 -5 -5 -5 -5 -5 -4 -4 ------- Run | Scr Mat Min Mat Min Mat Fac Was Fac Low Low Dat Pro Fac Was Fac Low Low Zio Pro Fac Upp Upp War Pro Fac Slots Evolved 12 | . . . 2 . 2 2 . . . . . . 2 . . . . . . 2 . . . . 2 Power . | . . . . . . . . . . . . . . . . . . . . . . . . . . Propulsion 5 | . . . 1 . 1 . . . . . . . 1 . . . . . . 1 . . . . 1 Utility 7 | . . . 1 . 1 2 . . . . . . 1 . . . . . . 1 . . . . 1 Weapon . | . . . . . . . . . . . . . . . . . . . . . . . . . . Parts Attached 206 | 2 20 3 25 7 29 10 2 10 4 3 . 5 5 10 14 3 6 . 6 22 1 . 10 . 9 Power 17 | 1 3 . 3 1 2 . . . . . . . 2 . 2 . . . 1 2 . . . . . Engine 13 | 1 3 . 3 1 2 . . . . . . . 1 . 1 . . . . 1 . . . . . Core 4 | . . . . . . . . . . . . . 1 . 1 . . . 1 1 . . . . . Reactor . | . . . . . . . . . . . . . . . . . . . . . . . . . . Propulsion 49 | . 5 1 11 1 15 1 . . . 1 . 1 1 . 4 . 1 . . 6 . . . . 1 Treads . | . . . . . . . . . . . . . . . . . . . . . . . . . . Leg . | . . . . . . . . . . . . . . . . . . . . . . . . . . Wheel 27 | . 5 1 10 1 10 . . . . . . . . . . . . . . . . . . . . Hover 22 | . . . 1 . 5 1 . . . 1 . 1 1 . 4 . 1 . . 6 . . . . 1 Flight . | . . . . . . . . . . . . . . . . . . . . . . . . . . Utility 71 | 1 3 . 3 3 9 6 . 8 2 . . 2 1 2 2 3 5 . 3 4 . . 8 . 6 Device 40 | . . . . 1 2 2 . 8 2 . . 1 . 2 . 2 4 . 2 4 . . 5 . 5 Storage 7 | 1 2 . 1 . 1 1 . . . . . 1 . . . . . . . . . . . . . Processor 5 | . 1 . . . 1 . . . . . . . . . 1 . . . . . . . 1 . 1 Hackware 5 | . . . . . . 3 . . . . . . 1 . . . . . . . . . 1 . . Protection 14 | . . . 2 2 5 . . . . . . . . . 1 1 1 . 1 . . . 1 . . Artifact . | . . . . . . . . . . . . . . . . . . . . . . . . . . Weapon 69 | . 9 2 8 2 3 3 2 2 2 2 . 2 1 8 6 . . . 2 10 1 . 2 . 2 Energy Gun . | . . . . . . . . . . . . . . . . . . . . . . . . . . Energy Cannon 17 | . . . . . 1 . . . . . . . . . 4 . . . . 7 1 . 2 . 2 Ballistic Gun 16 | . 4 . 6 1 1 . . . . . . . . 4 . . . . . . . . . . . Ballistic Cannon 6 | . 4 1 1 . . . . . . . . . . . . . . . . . . . . . . Launcher 9 | . 1 . 1 1 . . 1 . 1 1 . 1 . . . . . . 2 . . . . . . Special Weapon 2 | . . . . . . . . . . . . . . . . . . . . 2 . . . . . Impact Weapon 9 | . . . . . . 1 . 1 1 1 . 1 . 2 2 . . . . . . . . . . Slashing Weapon 3 | . . 1 . . . 1 1 . . . . . . . . . . . . . . . . . . Piercing Weapon . | . . . . . . . . . . . . . . . . . . . . . . . . . . Special Melee Weapon 7 | . . . . . 1 1 . 1 . . . . 1 2 . . . . . 1 . . . . . Unidentified Prototypes 16 | . . . 3 1 2 . . . 1 . . 1 . 1 . . . . . 1 . . 5 . 1 Parts Lost 13 | . 2 . 3 . 2 . . . . . . . . . . . . . . 1 . . . . 5 Power 1 | . . . . . . . . . . . . . . . . . . . . 1 . . . . . Propulsion 4 | . 2 . 1 . . . . . . . . . . . . . . . . . . . . . 1 Utility 3 | . . . . . 1 . . . . . . . . . . . . . . . . . . . 2 Weapon 5 | . . . 2 . 1 . . . . . . . . . . . . . . . . . . . 2 Highest Loss Streak 5 | . 1 . 3 . 1 . . . . . . . . . . . . . . 1 . . . . 5 To Critical Strikes . | . . . . . . . . . . . . . . . . . . . . . . . . . . Average Slot Usage (%) 97 | . 97 100 99 99 99 99 100 99 92 92 92 92 95 100 97 92 92 93 93 96 99 100 99 100 95 Engine 6 | . 13 14 10 11 9 7 7 7 7 7 7 7 5 6 6 6 6 6 2 . . . . . . Core 3 | . . . . . . . . . . . . . 2 6 6 6 6 6 9 8 11 11 11 11 10 Wheel 10 | . 27 28 33 33 35 . . . . . . . . . . . . . . . . . . . . Hover 20 | . . . . . . 30 30 30 28 28 28 28 31 31 31 31 30 31 31 32 33 33 33 33 32 Device 5 | . . . . . . 7 7 6 6 7 7 7 6 6 6 5 6 6 6 10 11 11 11 11 10 Storage 7 | . 14 14 11 11 9 7 7 7 7 7 7 7 6 6 6 6 6 6 6 5 5 5 5 5 5 Processor 7 | . 13 14 11 11 1 7 7 7 7 7 7 7 6 6 6 6 6 6 6 5 5 5 9 11 13 Hackware 13 | . . . . . . 23 23 23 21 21 21 21 25 25 22 18 18 18 18 16 16 16 11 11 10 Protection 5 | . . . 10 10 25 . . . . . . . . . 2 5 5 6 5 5 5 5 5 5 4 Ballistic Gun 4 | . 9 . 20 21 17 . . . . . . . . . . . . . . . . . . . . Ballistic Cannon 1 | . 17 17 1 . . . . . . . . . . . . . . . . . . . . . . Impact Weapon 3 | . . . . . . 4 1 6 6 6 7 6 6 5 6 6 6 6 6 . . . . . . Special Melee Weapon 3 | . . . . . . 7 7 6 7 7 7 7 5 5 3 . . . . 4 5 5 5 5 4 Naked Turns . | . . . . . . . . . . . . . . . . . . . . . . . . . . Heaviest Build 118 | 8 31 31 111 102 118 30 30 31 30 30 30 32 40 42 42 40 43 40 48 48 46 46 50 45 46 Greatest Support 66 | 3 32 32 42 36 52 32 32 32 32 32 32 32 40 40 40 40 40 40 40 54 54 54 54 54 66 Greatest Overweight (x) 3 | 2 1 . 2 2 3 . . . . . . . . 1 1 . 1 . 1 . . . . . . Average Overweight (x) . | . . . 1 2 2 . . . . . . . . . . . . . . . . . . . . Largest Inventory Capacity 25 | 8 15 15 25 25 25 25 15 15 15 15 15 15 15 15 15 15 15 15 15 15 15 15 15 15 15 Average Capacity 17 | 6 14 15 24 25 25 12 15 15 15 15 15 15 15 15 15 15 15 15 15 15 15 15 15 15 15 Most Carried 25 | 5 13 15 25 25 25 11 12 15 15 15 15 15 15 15 15 15 15 15 15 15 15 15 15 15 15 Average Carried 16 | 4 7 14 22 24 24 10 11 13 14 14 15 14 13 14 14 14 14 14 14 14 15 15 14 15 14 Final Capacity 25 | 8 15 15 25 25 25 15 15 15 15 15 15 15 15 15 15 15 15 15 15 15 15 15 15 15 15 Final Carried 25 | 5 10 13 25 25 12 11 12 15 15 15 15 15 14 15 14 15 15 15 15 15 15 15 15 15 15 Class Distribution -------------------- 65% | Hacker-Mutant 29% | Mutant 3% | Scavenger-Mutant Dominant Class ---------------- Mutant | -10/Materials Mutant | -10/Mines Mutant | -9/Materials Mutant | -9/Mines Mutant | -8/Materials Hacker-Mutant | -7/Factory Hacker-Mutant | -7/Waste Hacker-Mutant | -7/Factory Hacker-Mutant | -7/Lower Caves Hacker-Mutant | -7/Lower Caves Hacker-Mutant | -7/Data Miner Hacker-Mutant | -6/Proximity Caves Hacker-Mutant | -6/Factory Hacker-Mutant | -6/Waste Hacker-Mutant | -6/Factory Hacker-Mutant | -6/Lower Caves Hacker-Mutant | -6/Lower Caves Hacker-Mutant | -6/Zion Hacker-Mutant | -5/Proximity Caves Hacker-Mutant | -5/Factory Hacker-Mutant | -5/Upper Caves Hacker-Mutant | -5/Upper Caves Hacker-Mutant | -5/Warlord Hacker-Mutant | -4/Proximity Caves Hacker-Mutant | -4/Factory Resources | -11 -10 -10 -9 -9 -8 -7 -7 -7 -7 -7 -7 -6 -6 -6 -6 -6 -6 -6 -5 -5 -5 -5 -5 -4 -4 ----------- Run | Scr Mat Min Mat Min Mat Fac Was Fac Low Low Dat Pro Fac Was Fac Low Low Zio Pro Fac Upp Upp War Pro Fac Matter Collected 4439 | 219 545 86 970 154 840 56 204 181 24 127 . 90 40 126 100 70 60 . 60 199 63 19 . 29 177 Remotely . | . . . . . . . . . . . . . . . . . . . . . . . . . . Salvage Created 6534 | . 504 248 1724 211 1304 70 560 268 55 82 . 9 116 254 526 . 12 . 14 279 . 95 . . 203 Parts 315 | . 29 15 110 16 82 2 7 8 7 . . 1 4 2 9 . . . . 10 . 1 . . 12 Haulers Intercepted 15 | . 2 . 6 . 6 . . . . . . . . . 1 . . . . . . . . . . Recyclers Shooed 8 | . 2 . 4 . 1 1 . . . . . . . . . . . . . . . . . . . Parts Field Recycled . | . . . . . . . . . . . . . . . . . . . . . . . . . . Retrieved Matter . | . . . . . . . . . . . . . . . . . . . . . . . . . . Parts Self-Destructed 30 | . . . . . . . . . 2 2 . 6 . . . 3 6 . 11 . . . . . . Prevented 7 | . . . . . . . . . . 7 . . . . . . . . . . . . . . . Kills | -11 -10 -10 -9 -9 -8 -7 -7 -7 -7 -7 -7 -6 -6 -6 -6 -6 -6 -6 -5 -5 -5 -5 -5 -4 -4 ------- Run | Scr Mat Min Mat Min Mat Fac Was Fac Low Low Dat Pro Fac Was Fac Low Low Zio Pro Fac Upp Upp War Pro Fac Combat Hostiles Destroyed 65 | . 10 1 19 5 17 . 2 . 4 . . 1 . 1 . . 1 . . 2 . . . . 2 Melee 1 | . . 1 . . . . . . . . . . . . . . . . . . . . . . . Guns 38 | . 2 . 17 1 17 . . . . . . . . 1 . . . . . . . . . . . Cannons 8 | . 4 . . . . . . . . . . . . . . . . . . 2 . . . . 2 AOE 17 | . 4 . 2 4 . . 2 . 4 . . 1 . . . . . . . . . . . . . Classes Destroyed 18 | . 9 1 2 . 1 . 1 . . 2 . . . . . . 1 . . 1 . . . . . Worker 32 | . 4 1 7 . 3 2 . 5 . . . . 2 . 8 . . . . . . . . . . Builder 8 | . 2 . 3 . . 1 . . . . . . 1 . . . . . . . . . . . 1 Tunneler 5 | . 1 1 . . 1 . . . . . . . 1 . . . . . . . . . . . 1 Hauler 15 | . 2 . 6 . 6 . . . . . . . . . 1 . . . . . . . . . . Recycler 17 | . 2 3 4 2 2 . . 1 . . . . . . 2 . . . . 1 . . . . . Minesweeper 2 | . . . . . . . . . . 1 . . . . . . . . 1 . . . . . . Operator 5 | . 1 . 2 . 1 . . . . . . . . . 1 . . . . . . . . . . Watcher 17 | . 2 . 4 . 2 . . 4 . . . . 2 . 1 . . . . 1 . . . . 1 Swarmer 23 | . 6 . 5 4 3 . . . 4 . . 1 . . . . . . . . . . . . . Grunt 16 | . 4 . 5 1 6 . . . . . . . . . . . . . . . . . . . . Brawler 1 | . . . 1 . . . . . . . . . . . . . . . . . . . . . . Sentry 14 | . . . 8 . 6 . . . . . . . . . . . . . . . . . . . . Demolisher 1 | . . 1 . . . . . . . . . . . . . . . . . . . . . . . Hunter 2 | . . . . . 2 . . . . . . . . . . . . . . . . . . . . Programmer 4 | . . . . . . . . . . . . . . . . . . . . 2 . . . . 2 Compactor 3 | . . . . . . . 2 . . . . . . 1 . . . . . . . . . . . Decomposer 1 | . . . . . . . . . . 1 . . . . . . . . . . . . . . . Packrat 1 | . . . . . . . . . . . . . . . . . . . . . . 1 . . . Samaritan 1 | . . . . . . . . . . 1 . . . . . . . . . . . . . . . Thief 1 | . . . . . . . . . . . . . . . . . 1 . . . . . . . . Martyr 2 | . . . . . . . . . . . . . . 2 . . . . . . . . . . . Best Kill Streak 6 | . 6 2 5 4 3 1 2 3 4 1 . 1 2 1 3 . 1 . 1 2 . . . . 2 Combat Bots Only 5 | . 5 1 4 4 2 . 2 . 4 . . 1 . 1 . . 1 . . 2 . . . . 2 Max Kills in Single Turn 3 | . 2 1 2 2 2 1 1 1 3 1 . 1 1 1 1 . 1 . 1 1 . 1 . . 1 Gunslinging 1 | . . . . . 1 . . . . . . . . . . . . . . . . . . . . Exploded 3 | . 2 . 2 2 . . 1 . 3 . . 1 . . . . . . . . . . . . . Melee 1 | . . 1 . . . . . . . . . . . . . . . . . . . . . . . Uniques/NPCs Destroyed . | . . . . . . . . . . . . . . . . . . . . . . . . . . Combat | -11 -10 -10 -9 -9 -8 -7 -7 -7 -7 -7 -7 -6 -6 -6 -6 -6 -6 -6 -5 -5 -5 -5 -5 -4 -4 -------- Run | Scr Mat Min Mat Min Mat Fac Was Fac Low Low Dat Pro Fac Was Fac Low Low Zio Pro Fac Upp Upp War Pro Fac Damage Taken 4526 | . 361 . 1176 103 1298 . . 16 65 15 . 57 16 . 38 . 57 . . 380 . . . 13 931 Core 586 | . 78 . 137 11 81 . . 16 25 15 . . . . . . 30 . . 60 . . . 13 120 Absorbed by Shields 12 | . . . . . . . . . . . . . . . . . . . . . . . . 12 . Regen/Repaired (Parts) 487 | . . . 12 . . . . 16 . . . . 87 . 73 . 27 . . 220 . . . . 52 Core Remaining (%) 85 | 100 . 68 . 63 85 . . . . . . 92 . . . . . . 96 . . . . 92 . Volleys Fired 546 | . 53 7 119 12 110 . 5 . 4 3 . 4 . 2 5 . . . . 72 18 67 2 11 52 Largest 2 | . 2 2 2 2 2 . 1 . 1 1 . 1 . 2 1 . . . . 1 1 1 1 1 1 Hottest 105 | . 78 78 78 46 46 . 30 . 30 30 . 30 . 50 75 . . . . 98 98 98 105 35 81 Shots Fired 842 | . 101 14 237 21 220 . 5 . 4 3 . 4 . 4 5 . . . . 72 19 68 2 11 52 Gun 501 | . 40 . 219 18 220 . . . . . . . . 4 . . . . . . . . . . . Cannon 315 | . 56 14 17 . . . . . . . . . . . 5 . . . . 71 19 68 2 11 52 Launcher 25 | . 5 . 1 3 . . 5 . 4 3 . 4 . . . . . . . . . . . . . Special 1 | . . . . . . . . . . . . . . . . . . . . 1 . . . . . Kinetic 588 | . 96 14 236 18 220 . . . . . . . . 4 . . . . . . . . . . . Thermal 221 | . . . . . . . . . . . . . . . . . . . . 70 19 68 2 11 51 Explosive 25 | . 5 . 1 3 . . 5 . 4 3 . 4 . . . . . . . . . . . . . Electromagnetic 7 | . . . . . . . . . . . . . . . 5 . . . . 1 . . . . 1 Robot Hit Streak 24 | . 9 6 24 11 13 . 8 . 2 . . . . 6 1 . . . . 3 . 1 . . 12 Robot Miss Streak 5 | . 3 3 5 1 4 . . . 2 . . . . . 2 . . . . 3 1 . . . . Penetration Max . | . . . . . . . . . . . . . . . . . . . . . . . . . . Secondary Targets 3 | . . . . . 3 . . . . . . . . . . . . . . . . . . . . Max Gunslinging Chain 1 | . . . . . 1 . . . . . . . . . . . . . . . . . . . . Capacitor 8 | . . . . . . . . . . . . . . . . . . . . . . . . . 8 Shots Hit Robots 510 | . 61 13 170 17 153 6 5 11 2 6 . . 8 9 14 . 4 . 1 12 . 1 6 . 11 Core Hits 204 | . 34 6 61 8 61 1 5 2 5 2 . 2 2 3 2 . . . . 3 . 1 . . 6 Critical Kills . | . . . . . . . . . . . . . . . . . . . . . . . . . . Critical Parts Destroyed 7 | . . . . . 1 . . 2 . . . . . 1 3 . . . . . . . . . . Critical Strikes 9 | . 1 . 1 . 1 . . 2 . . . . . 1 3 . . . . . . . . . . Destroy 1 | . . . . . 1 . . . . . . . . . . . . . . . . . . . . Blast 2 | . 1 . 1 . . . . . . . . . . . . . . . . . . . . . . Smash 6 | . . . . . . . . 2 . . . . . 1 3 . . . . . . . . . . Melee Attacks 219 | . . 7 . . . 21 . 39 22 12 . . 28 5 58 12 6 . 2 1 . . 6 . . Impact 195 | . . . . . . 15 . 37 22 10 . . 27 5 58 12 6 . 2 1 . . . . . Slashing 13 | . . 7 . . . 4 . 2 . . . . . . . . . . . . . . . . . Piercing . | . . . . . . . . . . . . . . . . . . . . . . . . . . Sneak Attacks 48 | . . 3 . . . 4 . 7 . 5 . . 6 5 10 . . . 1 1 . . 6 . . Combat Hostiles . | . . . . . . . . . . . . . . . . . . . . . . . . . . Follow-up Attacks 1 | . . . . . . . . 1 . . . . . . . . . . . . . . . . . Damage Inflicted 12988 | . 1214 365 2880 524 2360 304 450 808 289 382 . 55 626 421 1067 . 150 . 94 522 . 34 . . 443 Guns 5524 | . 298 . 2569 237 2360 . . . . . . . . 60 . . . . . . . . . . . Cannons 1893 | . 616 146 179 . . . . . . . . . . . 50 . . . . 425 . 34 . . 443 Explosions 1562 | . 300 . 132 287 . . 450 . 289 49 . 55 . . . . . . . . . . . . . Melee 4009 | . . 219 . . . 304 . 808 . 333 . . 626 361 1017 . 150 . 94 97 . . . . . Ramming . | . . . . . . . . . . . . . . . . . . . . . . . . . . Kinetic 6465 | . 914 146 2748 237 2360 . . . . . . . . 60 . . . . . . . . . . . Thermal 778 | . . . . . . . . . . . . . . . . . . . . 363 . 34 . . 381 Explosive 1562 | . 300 . 132 287 . . 450 . 289 49 . 55 . . . . . . . . . . . . . Electromagnetic 174 | . . . . . . . . . . . . . . . 50 . . . . 62 . . . . 62 Impact 3669 | . . . . . . 210 . 781 . 333 . . 626 361 1017 . 150 . 94 97 . . . . . Slashing 340 | . . 219 . . . 94 . 27 . . . . . . . . . . . . . . . . . Piercing . | . . . . . . . . . . . . . . . . . . . . . . . . . . Highest Corruption 8 | . . . . . . . 7 8 . . . . . . 1 1 1 1 . 2 2 2 2 . 1 Average Corruption 2 | . . . . . . . 7 6 . . . . . . 1 1 1 1 . 1 2 2 2 . 1 Corruption Purged 8 | . . . . . . . . 8 . . . . . . . . . . . . . . . . . Corruption Blocked . | . . . . . . . . . . . . . . . . . . . . . . . . . . Effects 52 | . . . . . . . 2 23 . . . . . . . . . 1 . 10 4 12 . . . Message Errors 16 | . . . . . . . 1 7 . . . . . . . . . 1 . 4 . 3 . . . Matter Fused 18 | . . . . . . . . 9 . . . . . . . . . . . 4 1 4 . . . Energy Discharges 8 | . . . . . . . . 3 . . . . . . . . . . . 2 1 2 . . . Data Loss (minor) 5 | . . . . . . . . 3 . . . . . . . . . . . . 1 1 . . . Data Loss (major) 1 | . . . . . . . 1 . . . . . . . . . . . . . . . . . . Misfires 2 | . . . . . . . . . . . . . . . . . . . . . 1 1 . . . Alerts 2 | . . . . . . . . 1 . . . . . . . . . . . . . 1 . . . Overload Shots 2 | . . . . . . . . . . . . . . . . . . . . . . . 2 . . Overflow Damage 2091 | . 21 48 . 6 . 158 . 412 16 242 . . 257 122 621 . 7 . 74 107 . . . . . Projectiles 61 | . 21 . . . . . . . . . . . . . . . . . . 40 . . . . . Explosions 22 | . . . . 6 . . . . 16 . . . . . . . . . . . . . . . . Melee 2008 | . . 48 . . . 158 . 412 . 242 . . 257 122 621 . 7 . 74 67 . . . . . Knockbacks 32 | . 9 2 1 . . 1 . 4 . 1 . . 3 4 5 . 1 . . 1 . . . . . Impact 20 | . . . . . . 1 . 4 . 1 . . 3 4 5 . 1 . . 1 . . . . . Kinetic 12 | . 9 2 1 . . . . . . . . . . . . . . . . . . . . . . Secondary . | . . . . . . . . . . . . . . . . . . . . . . . . . . Self-Inflicted Damage 84 | . 4 . . . . . . . 41 . . 39 . . . . . . . . . . . . . Shots 3 | . 1 . . . . . . . 1 . . 1 . . . . . . . . . . . . . Rammed . | . . . . . . . . . . . . . . . . . . . . . . . . . . Targets Rammed . | . . . . . . . . . . . . . . . . . . . . . . . . . . Kicked . | . . . . . . . . . . . . . . . . . . . . . . . . . . Crushed . | . . . . . . . . . . . . . . . . . . . . . . . . . . Highest Temperature 322 | . 142 36 303 8 214 . . . . . . 3 . 8 64 . . . . 322 144 180 50 . 112 Average Temperature 50 | . 31 17 37 4 49 . . . . . . 3 . 6 26 . . . . 64 59 62 28 . 53 Received Heat Transfer 1234 | . 96 . 510 30 477 . . . . 9 . 27 . . . . . . . . . . . 4 81 Siege Activations . | . . . . . . . . . . . . . . . . . . . . . . . . . . Robots Corrupted . | . . . . . . . . . . . . . . . . . . . . . . . . . . Combat Hostiles . | . . . . . . . . . . . . . . . . . . . . . . . . . . Parts Fried 42 | . . . . . . 3 . 8 . 5 . . 5 3 12 . 1 . 1 3 . . . . 1 Impact Corruptions 72 | . . . . . . 5 . 16 . 9 . . 9 3 23 . 2 . 3 2 . . . . . Robots Melted . | . . . . . . . . . . . . . . . . . . . . . . . . . . Combat Hostiles . | . . . . . . . . . . . . . . . . . . . . . . . . . . Parts Melted 4 | . . . . . . . . . . . . . . . . . . . . . . . . . 4 Heat Transferred 1000 | . . . . . . . . . . . . . . . . . . . . 450 . 50 . . 500 Parts Sabotaged . | . . . . . . . . . . . . . . . . . . . . . . . . . . Parts Stolen 1 | . . . . . . . . . . . . . . . . . 1 . . . . . . . . Parts Stripped . | . . . . . . . . . . . . . . . . . . . . . . . . . . Power Chain Reactions . | . . . . . . . . . . . . . . . . . . . . . . . . . . Missiles Intercepted . | . . . . . . . . . . . . . . . . . . . . . . . . . . Alert | -11 -10 -10 -9 -9 -8 -7 -7 -7 -7 -7 -7 -6 -6 -6 -6 -6 -6 -6 -5 -5 -5 -5 -5 -4 -4 ------- Run | Scr Mat Min Mat Min Mat Fac Was Fac Low Low Dat Pro Fac Was Fac Low Low Zio Pro Fac Upp Upp War Pro Fac Peak Influence 535 | . 337 108 481 389 479 205 53 304 . . . . 96 67 535 . . . . 119 . . . . 151 Initial 136 | . . 58 . 136 65 94 3 30 . . . . 2 13 46 . . . . . . . . . 28 Average 174 | . 140 28 311 298 257 85 28 139 . . . . 42 63 314 . . . . 29 . . . . 60 Maximum Alert Level 2 | . 1 . 2 1 2 1 . 1 . . . . . . 2 . . . . . . . . . . Low Security (%) 59 | 100 67 100 12 21 34 99 100 79 . . . . 100 100 14 . . . . 100 . . . . 100 Level 1 33 | . 32 . 75 78 50 . . 20 . . . . . . 61 . . . . . . . . . . Level 2 6 | . . . 12 . 14 . . . . . . . . . 24 . . . . . . . . . . Level 3 . | . . . . . . . . . . . . . . . . . . . . . . . . . . Level 4 . | . . . . . . . . . . . . . . . . . . . . . . . . . . Level 5 . | . . . . . . . . . . . . . . . . . . . . . . . . . . High Security . | . . . . . . . . . . . . . . . . . . . . . . . . . . Max Security . | . . . . . . . . . . . . . . . . . . . . . . . . . . Squads Dispatched 37 | . 1 . 3 . 3 4 . 9 . . . . 4 . 7 . . . . 1 . . . . 5 Investigation 13 | . . . 1 . 1 1 . 4 . . . . 2 . 3 . . . . . . . . . 1 Extermination 8 | . . . . . . . . 3 . . . . . . 2 . . . . 1 . . . . 2 Reinforcement 15 | . 1 . 2 . 2 3 . 2 . . . . 2 . 2 . . . . . . . . . 1 Assault 1 | . . . . . . . . . . . . . . . . . . . . . . . . . 1 Garrison . | . . . . . . . . . . . . . . . . . . . . . . . . . . Intercept . | . . . . . . . . . . . . . . . . . . . . . . . . . . Searches Triggered . | . . . . . . . . . . . . . . . . . . . . . . . . . . Data Miner Redirects 3 | . . . . . . . . . . . . . 1 . 1 . . . . . . . . . 1 Construction Impeded 2 | . . . 1 . . . . . . . . . 1 . . . . . . . . . . . . Haulers Reinforced . | . . . . . . . . . . . . . . . . . . . . . . . . . . Active Scanning Responses . | . . . . . . . . . . . . . . . . . . . . . . . . . . Cargo Convoy Interrupts 1 | . . . . . . . . . . . . . . . . . . . . . . . . . 1 Stealth | -11 -10 -10 -9 -9 -8 -7 -7 -7 -7 -7 -7 -6 -6 -6 -6 -6 -6 -6 -5 -5 -5 -5 -5 -4 -4 --------- Run | Scr Mat Min Mat Min Mat Fac Was Fac Low Low Dat Pro Fac Was Fac Low Low Zio Pro Fac Upp Upp War Pro Fac Distress Signals 13 | . 3 . . . 3 1 . 3 . . . . 2 . . . . . . . . . . . 1 Communications Jammed . | . . . . . . . . . . . . . . . . . . . . . . . . . . Distress Signals . | . . . . . . . . . . . . . . . . . . . . . . . . . . Times Spotted 259 | . 19 5 39 9 41 5 6 24 8 12 . 6 8 5 8 . 1 . 1 8 3 . . 3 48 Peak Tracking Total 32 | . 6 1 3 4 9 4 4 8 3 4 . 4 5 5 6 . 1 . 1 4 4 . . 3 32 Tactical Retreats 32 | . . 4 1 . 2 . . 8 4 6 . 2 . . . . . . . . 1 . . 2 2 Traps | -11 -10 -10 -9 -9 -8 -7 -7 -7 -7 -7 -7 -6 -6 -6 -6 -6 -6 -6 -5 -5 -5 -5 -5 -4 -4 ------- Run | Scr Mat Min Mat Min Mat Fac Was Fac Low Low Dat Pro Fac Was Fac Low Low Zio Pro Fac Upp Upp War Pro Fac Traps Triggered 16 | . 2 . 1 . 1 1 . 1 . . . . 1 . 2 . . . . 5 . . . . 2 Indirectly . | . . . . . . . . . . . . . . . . . . . . . . . . . . Trap Hack Attempts . | . . . . . . . . . . . . . . . . . . . . . . . . . . Triggered . | . . . . . . . . . . . . . . . . . . . . . . . . . . Disarmed . | . . . . . . . . . . . . . . . . . . . . . . . . . . Reprogrammed . | . . . . . . . . . . . . . . . . . . . . . . . . . . Reused 4 | . . . . . . . . . . 4 . . . . . . . . . . . . . . . Traps Extracted . | . . . . . . . . . . . . . . . . . . . . . . . . . . Installed 6 | . . . . . . . . . . 6 . . . . . . . . . . . . . . . Triggered 19 | . . . . . . . . . . 7 . . . . . . . . . . . . 12 . . Most Traps Carried 3 | . . . . . . . . . . 3 . . . . . . . . . . . . . . . Time Bombs Activated 1 | . . . . . . . . . . . . . . . . . . . 1 . . . . . . Exploded 1 | . . . . . . . . . . . . . . . . . . . 1 . . . . . . Machines | -11 -10 -10 -9 -9 -8 -7 -7 -7 -7 -7 -7 -6 -6 -6 -6 -6 -6 -6 -5 -5 -5 -5 -5 -4 -4 ---------- Run | Scr Mat Min Mat Min Mat Fac Was Fac Low Low Dat Pro Fac Was Fac Low Low Zio Pro Fac Upp Upp War Pro Fac Machines Disabled 7 | . 4 . 1 1 1 . . . . . . . . . . . . . . . . . . . . Max in Single Turn 1 | . 1 . . . 1 . . . . . . . . . . . . . . . . . . . . Garrison Access 6 | . . . . . 1 1 . . . . . . 1 . 1 . . . . 1 . . . . 1 Machines Sabotaged . | . . . . . . . . . . . . . . . . . . . . . . . . . . Garrisons Compromised . | . . . . . . . . . . . . . . . . . . . . . . . . . . Overloaded Fab Kills . | . . . . . . . . . . . . . . . . . . . . . . . . . . Hacking | -11 -10 -10 -9 -9 -8 -7 -7 -7 -7 -7 -7 -6 -6 -6 -6 -6 -6 -6 -5 -5 -5 -5 -5 -4 -4 --------- Run | Scr Mat Min Mat Min Mat Fac Was Fac Low Low Dat Pro Fac Was Fac Low Low Zio Pro Fac Upp Upp War Pro Fac Machines Accessed 106 | . 4 . 14 2 8 6 . 11 1 1 4 . 11 . 16 . 1 . . 19 2 . 2 . 4 Terminals 58 | . 4 . 11 1 5 2 . 6 . . . . 6 . 10 . . . . 11 . . . . 2 Fabricators 12 | . . . . . . 2 . 3 . . . . 2 . 2 . . . . 2 . . . . 1 Repair Stations 10 | . . . 1 . . . . 1 . . . . 2 . 2 . . . . 3 . . . . 1 Recycling Units . | . . . . . . . . . . . . . . . . . . . . . . . . . . Scanalyzers 8 | . . . 2 . 2 1 . 1 . . . . . . 1 . . . . 1 . . . . . Garrison Access 6 | . . . . . 1 1 . . . . . . 1 . 1 . . . . 2 . . . . . Total Hacks 291 | . 8 . 36 3 16 11 . 37 1 1 32 . 36 . 43 . 1 . . 51 3 . 2 . 10 Successful 210 | . 4 . 20 2 8 8 . 31 1 1 32 . 29 . 31 . 1 . . 33 3 . 2 . 4 Failed 80 | . 4 . 16 . 8 3 . 6 . . . . 7 . 12 . . . . 18 . . . . 6 Catastrophic 9 | . . . 4 . 1 1 . . . . . . 1 . 1 . . . . 1 . . . . . Database Lockouts 1 | . . . . 1 . . . . . . . . . . . . . . . . . . . . . Manual 91 | . 4 . 15 2 2 4 . 15 . . . . 12 . 17 . . . . 14 . . 1 . 5 Terminals 160 | . 8 . 31 2 9 3 . 18 . . . . 23 . 30 . . . . 31 . . . . 5 Fabricators 27 | . . . . . . 5 . 9 . . . . 6 . 2 . . . . 3 . . . . 2 Repair Stations 34 | . . . 2 . . . . 5 . . . . 6 . 7 . . . . 11 . . . . 3 Recycling Units . | . . . . . . . . . . . . . . . . . . . . . . . . . . Scanalyzers 21 | . . . 3 . 6 2 . 5 . . . . . . 2 . . . . 3 . . . . . Garrison Access 8 | . . . . . 1 1 . . . . . . 1 . 2 . . . . 3 . . . . . Terminal Hacks 115 | . 3 . 11 2 4 . . 11 1 1 32 . 10 . 17 . 1 . . 17 3 . 2 . . Record 13 | . . . . . . . . . . . 11 . . . . . . . . . 2 . . . . Part Schematic 18 | . . . . 1 . . . 1 . . 12 . 3 . . . . . . 1 . . . . . Robot Schematic 7 | . . . . . . . . . . . 6 . . . 1 . . . . . . . . . . Robot Analysis 1 | . . . . . . . . . . . . . . . . . . . . 1 . . . . . Prototype ID Bank 10 | . . . 2 . . . . . . . 3 . 1 . 3 . . . . 1 . . . . . Open Door 7 | . . . . 1 . . . . 1 1 . . . . . . 1 . . . 1 . 2 . . Branch Access Points 4 | . . . 1 . 1 . . 1 . . . . . . 1 . . . . . . . . . . Machine Index 1 | . . . . . . . . . . . . . . . 1 . . . . . . . . . . Terminal Index 4 | . . . 1 . . . . 1 . . . . 1 . . . . . . 1 . . . . . Fabricator Index 1 | . . . . . . . . 1 . . . . . . . . . . . . . . . . . Repair Station Index 1 | . . . . . . . . . . . . . 1 . . . . . . . . . . . . Garrison Index 1 | . . . . . . . . . . . . . 1 . . . . . . . . . . . . Alert Level 1 | . . . . . 1 . . . . . . . . . . . . . . . . . . . . Unreport Threat 5 | . 1 . 1 . 2 . . . . . . . . . . . . . . 1 . . . . . Locate Traps 13 | . . . 2 . . . . 2 . . . . . . 4 . . . . 5 . . . . . Recall Extermination 2 | . . . . . . . . 1 . . . . . . 1 . . . . . . . . . . Recall Reinforcements 5 | . . . 1 . . . . 1 . . . . 2 . 1 . . . . . . . . . . Hauler Manifests 2 | . 1 . . . . . . . . . . . . . 1 . . . . . . . . . . Zone Layout 19 | . 1 . 3 . . . . 3 . . . . 1 . 4 . . . . 7 . . . . . Fabricator Hacks 14 | . . . . . . 3 . 5 . . . . 3 . 1 . . . . 1 . . . . 1 Network Status 5 | . . . . . . . . 1 . . . . 1 . 1 . . . . 1 . . . . 1 Load Schematic 5 | . . . . . . 1 . 3 . . . . 1 . . . . . . . . . . . . Build 4 | . . . . . . 2 . 1 . . . . 1 . . . . . . . . . . . . Repair Station Hacks 26 | . . . 2 . . . . 4 . . . . 6 . 6 . . . . 6 . . . . 2 Scan Component 13 | . . . 1 . . . . 2 . . . . 3 . 3 . . . . 3 . . . . 1 Repair 13 | . . . 1 . . . . 2 . . . . 3 . 3 . . . . 3 . . . . 1 Recycling Unit Hacks . | . . . . . . . . . . . . . . . . . . . . . . . . . . Scanalyzer 16 | . . . 2 . 3 2 . 5 . . . . . . 2 . . . . 2 . . . . . Insert Component 8 | . . . 1 . 2 1 . 2 . . . . . . 1 . . . . 1 . . . . . Analyze 8 | . . . 1 . 1 1 . 3 . . . . . . 1 . . . . 1 . . . . . Garrison Access Hacks 5 | . . . . . 1 1 . . . . . . 1 . 1 . . . . 1 . . . . . Seal Access 5 | . . . . . 1 1 . . . . . . 1 . 1 . . . . 1 . . . . . Unauthorized Hacks 34 | . 1 . 5 . . 2 . 6 . . . . 9 . 4 . . . . 6 . . . . 1 Terminals 26 | . 1 . 5 . . 1 . 3 . . . . 6 . 3 . . . . 6 . . . . 1 Track 9 | . 1 . 3 . . . . 2 . . . . 2 . . . . . . 1 . . . . . Assimilate 8 | . . . . . . 1 . . . . . . 2 . 2 . . . . 2 . . . . 1 Botnet 9 | . . . 2 . . . . 1 . . . . 2 . 1 . . . . 3 . . . . . Fabricators 8 | . . . . . . 1 . 3 . . . . 3 . 1 . . . . . . . . . . Report 1 | . . . . . . . . . . . . . 1 . . . . . . . . . . . . Prioritize 1 | . . . . . . . . . . . . . 1 . . . . . . . . . . . . Liberate 2 | . . . . . . . . 1 . . . . 1 . . . . . . . . . . . . Recompile 4 | . . . . . . 1 . 2 . . . . . . 1 . . . . . . . . . . Repair Stations . | . . . . . . . . . . . . . . . . . . . . . . . . . . Recycling Units . | . . . . . . . . . . . . . . . . . . . . . . . . . . Scanalyzers . | . . . . . . . . . . . . . . . . . . . . . . . . . . Garrison Access . | . . . . . . . . . . . . . . . . . . . . . . . . . . Data Cores Recovered 2 | . . . 1 . 1 . . . . . . . . . . . . . . . . . . . . Used 1 | . . . 1 . . . . . . . . . . . . . . . . . . . . . . Hacking Detections 73 | . 4 . 11 1 7 4 . 10 . . . . 8 . 9 . . . . 15 . . . . 4 Full Trace Events 6 | . . . . . 2 . . 2 . . . . 1 . . . . . . . . . . . 1 Feedback Events . | . . . . . . . . . . . . . . . . . . . . . . . . . . Feedback Blocked . | . . . . . . . . . . . . . . . . . . . . . . . . . . Robot Schematics Acquired 7 | . . . . . . . . . . . 6 . . . 1 . . . . . . . . . . Robots Built 3 | . . . . . . 3 . . . . . . . . . . . . . . . . . . . Authchips . | . . . . . . . . . . . . . . . . . . . . . . . . . . Time 58 | . . . . . . 58 . . . . . . . . . . . . . . . . . . . Total Robot Build Rating 9 | . . . . . . 9 . . . . . . . . . . . . . . . . . . . Part Schematics Acquired 23 | . . . 1 1 . 1 . 2 . . 12 . 3 . 1 . . . . 2 . . . . . Parts Built 4 | . . . . . . 2 . 1 . . . . 1 . . . . . . . . . . . . Authchips . | . . . . . . . . . . . . . . . . . . . . . . . . . . Time 228 | . . . . . . 84 . 68 . . . . 76 . . . . . . . . . . . . Total Part Build Rating 21 | . . . . . . 8 . 8 . . . . 5 . . . . . . . . . . . . Parts Repaired 13 | . . . 1 . . . . 2 . . . . 3 . 3 . . . . 3 . . . . 1 Time 557 | . . . 35 . . . . 82 . . . . 156 . 140 . . . . 119 . . . . 25 Parts Recycled . | . . . . . . . . . . . . . . . . . . . . . . . . . . Recycled Matter . | . . . . . . . . . . . . . . . . . . . . . . . . . . Retrieved Matter . | . . . . . . . . . . . . . . . . . . . . . . . . . . Retrieved Components . | . . . . . . . . . . . . . . . . . . . . . . . . . . Parts Scanalyzed 5 | . . . 1 . 1 . . 1 . . . . . . 1 . . . . 1 . . . . . Part Schematics Acquired 5 | . . . 1 . . 1 . 1 . . . . . . 1 . . . . 1 . . . . . Parts Damaged 2 | . . . 1 . . . . . . . . . . . 1 . . . . . . . . . . Bothacking | -11 -10 -10 -9 -9 -8 -7 -7 -7 -7 -7 -7 -6 -6 -6 -6 -6 -6 -6 -5 -5 -5 -5 -5 -4 -4 ------------ Run | Scr Mat Min Mat Min Mat Fac Was Fac Low Low Dat Pro Fac Was Fac Low Low Zio Pro Fac Upp Upp War Pro Fac Used RIF Installer . | . . . . . . . . . . . . . . . . . . . . . . . . . . Robots Hacked 4 | . . . . . . 2 . . . 1 . . 1 . . . . . . . . . . . . Non-combat 4 | . . . . . . 2 . . . 1 . . 1 . . . . . . . . . . . . Combat . | . . . . . . . . . . . . . . . . . . . . . . . . . . Robot Hacks Applied 4 | . . . . . . 2 . . . 1 . . 1 . . . . . . . . . . . . parse_system 1 | . . . . . . . . . . 1 . . . . . . . . . . . . . . . find_chute 3 | . . . . . . 2 . . . . . . 1 . . . . . . . . . . . . Relay Couplers Released . | . . . . . . . . . . . . . . . . . . . . . . . . . . Fabnet Peak Effective % . | . . . . . . . . . . . . . . . . . . . . . . . . . . Robots Rewired 4 | . . . . . . . . . . . . . . . . . . . . . . . 4 . . Allies Hacked 2 | . . . . . . . . . . . . . . . 2 . . . . . . . . . . Hacks Repelled . | . . . . . . . . . . . . . . . . . . . . . . . . . . Allies | -11 -10 -10 -9 -9 -8 -7 -7 -7 -7 -7 -7 -6 -6 -6 -6 -6 -6 -6 -5 -5 -5 -5 -5 -4 -4 -------- Run | Scr Mat Min Mat Min Mat Fac Was Fac Low Low Dat Pro Fac Was Fac Low Low Zio Pro Fac Upp Upp War Pro Fac Total Allies 47 | . . 2 . 3 . 4 . . . . . 1 5 19 . . . 7 . 1 . . 4 . 1 Largest Group 19 | . . 2 2 3 2 4 1 . . . . 1 4 19 17 . . 7 7 1 . . 4 1 1 Highest-Rated Group 684 | . . 45 45 40 24 85 10 . . . . 96 97 684 584 . . 173 173 10 . . 204 65 26 Highest-Rated Ally 96 | . . 31 31 16 16 25 10 . . . . 96 29 50 46 . . 32 32 10 . . 65 65 26 Total Orders 14 | . . . . . . . . . . . . . . . . 5 2 . 7 . . . . . . EXPLORE 10 | . . . . . . . . . . . . . . . . 3 2 . 5 . . . . . . RETURN 4 | . . . . . . . . . . . . . . . . 2 . . 2 . . . . . . Ally Attacks 366 | . . 6 29 10 50 11 . . . . . 14 22 89 85 2 2 . 46 . . . . . . Total Damage 8237 | . . 127 334 105 594 329 . . . . . 513 304 3318 2001 . . . 612 . . . . . . Kills 55 | . . . 8 2 9 3 . . . . . 4 3 5 17 . . . 4 . . . . . . Allies Corrupted 5 | . . . . . . . . . . . . . . 2 2 . . . 1 . . . . . . Allies Melted . | . . . . . . . . . . . . . . . . . . . . . . . . . . Intel | -11 -10 -10 -9 -9 -8 -7 -7 -7 -7 -7 -7 -6 -6 -6 -6 -6 -6 -6 -5 -5 -5 -5 -5 -4 -4 ------- Run | Scr Mat Min Mat Min Mat Fac Was Fac Low Low Dat Pro Fac Was Fac Low Low Zio Pro Fac Upp Upp War Pro Fac Robot Analysis Total 1 | . . . . . . . . . . . . . . . . . . . . 1 . . . . . Derelict Logs Recovered 14 | . . 1 . 1 . . . . 1 1 . . . . . 1 1 3 2 . 2 1 . . . Drone Launches 17 | . . . . . . . . . . . . . . . . 7 2 . 8 . . . . . . Drone Recoveries 7 | . . . . . . . . . . . . . . . . 5 . . 2 . . . . . . Exploration | -11 -10 -10 -9 -9 -8 -7 -7 -7 -7 -7 -7 -6 -6 -6 -6 -6 -6 -6 -5 -5 -5 -5 -5 -4 -4 ------------- Run | Scr Mat Min Mat Min Mat Fac Was Fac Low Low Dat Pro Fac Was Fac Low Low Zio Pro Fac Upp Upp War Pro Fac Turns Passed 19549 | 45 685 1267 2083 505 1799 548 53 1296 773 1650 36 492 696 375 1327 335 453 528 910 1166 282 1041 373 256 575 Spaces Moved 25075 | 40 472 1118 1331 389 1168 1022 103 1971 1046 1454 94 602 1157 489 2460 768 767 1113 1264 2039 696 1291 592 668 961 Core 40 | 40 . . . . . . . . . . . . . . . . . . . . . . . . . Treads . | . . . . . . . . . . . . . . . . . . . . . . . . . . Legs . | . . . . . . . . . . . . . . . . . . . . . . . . . . Wheels 4477 | . 472 1118 1331 389 1167 . . . . . . . . . . . . . . . . . . . . Hover 20558 | . . . . . 1 1022 103 1971 1046 1454 94 602 1157 489 2460 768 767 1113 1264 2039 696 1291 592 668 961 Flight . | . . . . . . . . . . . . . . . . . . . . . . . . . . Fastest Speed 30 | 50 100 100 93 116 115 38 38 38 38 38 38 38 34 34 34 34 34 34 34 30 35 35 35 35 33 Average Speed 49 | 95 101 100 119 116 117 38 38 38 38 38 38 38 34 34 34 34 34 34 40 34 35 35 35 35 35 Slowest Speed 218 | 150 115 100 123 116 218 38 38 38 38 38 38 38 34 94 94 34 98 34 94 40 35 35 35 35 45 Overloaded Moves . | . . . . . . . . . . . . . . . . . . . . . . . . . . Propulsion Burnouts . | . . . . . . . . . . . . . . . . . . . . . . . . . . Robots Hopped . | . . . . . . . . . . . . . . . . . . . . . . . . . . Cave-ins Triggered . | . . . . . . . . . . . . . . . . . . . . . . . . . . Exploration Rate (%) 67 | 3 76 98 95 97 84 25 74 35 87 65 70 72 36 88 49 79 69 85 88 54 72 80 72 75 19 Regions Visited 25 Branch Regions 14 Pre-discovered Areas 5 | . . . . . . . . . 1 . 1 . . . . . . 2 . . 1 . . . . Known Exits Taken 18 | . . . 1 1 1 . . 1 1 1 1 1 . . 1 1 1 1 1 1 1 1 1 1 . Unknown Exits Taken 3 | 1 1 1 . . . . . . . . . . . . . . . . . . . . . . . Scrap Searched 27 | . . . . 1 . . . . . 2 . 2 . . . 5 2 4 4 . 4 2 . 1 . Spaces Dug 315 | . . . . . . 13 . 25 21 5 . . 17 . 41 12 . . . 48 18 63 2 11 39 Terrain Destroyed 531 | . 19 . 14 29 . 13 32 25 62 27 . 44 17 . 41 12 . . . 60 19 64 2 11 40 Melee 134 | . . . . . . 13 . 25 21 5 . . 17 . 41 12 . . . . . . . . . Projectile 203 | . 4 . 3 . . . . . . . . . . . . . . . . 60 19 64 2 11 40 AOE 194 | . 15 . 11 29 . . 32 . 41 22 . 44 . . . . . . . . . . . . . Terrain Rammed . | . . . . . . . . . . . . . . . . . . . . . . . . . . Walls Destroyed . | . . . . . . . . . . . . . . . . . . . . . . . . . . Machines Disabled . | . . . . . . . . . . . . . . . . . . . . . . . . . . Actions | -11 -10 -10 -9 -9 -8 -7 -7 -7 -7 -7 -7 -6 -6 -6 -6 -6 -6 -6 -5 -5 -5 -5 -5 -4 -4 --------- Run | Scr Mat Min Mat Min Mat Fac Was Fac Low Low Dat Pro Fac Was Fac Low Low Zio Pro Fac Upp Upp War Pro Fac Total 31002 | 46 578 1239 1591 422 1384 1149 110 2451 1377 2536 93 860 1411 678 2845 821 947 1263 1655 2434 715 1812 755 678 1152 Wait 4631 | . 12 96 62 6 37 86 . 414 297 1029 . 245 217 169 282 33 160 143 370 261 . 455 133 . 124 Move 25052 | 39 471 1117 1330 388 1167 1022 102 1970 1045 1453 93 601 1157 488 2459 767 766 1112 1263 2038 695 1290 591 667 961 Hop . | . . . . . . . . . . . . . . . . . . . . . . . . . . Pick Up 151 | 5 16 6 32 2 12 3 1 12 1 15 . 1 3 2 12 2 3 4 4 12 . . 2 . 1 Fast Attach 56 | 2 4 . 1 2 1 3 . 1 3 . . 2 3 . 2 2 2 . 5 9 1 . 8 . 5 Attach 67 | . 11 1 8 . 16 3 . 4 1 . . . 2 . 5 1 4 . 1 8 . . . . 2 Detach 14 | . . . . 1 1 . . . . . . 1 . . 3 1 2 . 1 3 . . . . 1 Swap 84 | . 5 2 16 5 12 4 2 5 1 3 . 3 . 10 7 . . . . 5 . . 2 . 2 Drop 163 | . 6 3 23 6 28 7 . 7 3 15 . 3 1 2 12 3 4 4 8 12 1 . 11 . 4 Fire 546 | . 53 7 119 12 110 . 5 . 4 3 . 4 . 2 5 . . . . 72 18 67 2 11 52 Melee 218 | . . 7 . . . 21 . 38 22 12 . . 28 5 58 12 6 . 2 1 . . 6 . . Ram . | . . . . . . . . . . . . . . . . . . . . . . . . . . Kick . | . . . . . . . . . . . . . . . . . . . . . . . . . . Crush . | . . . . . . . . . . . . . . . . . . . . . . . . . . Escape Stasis 13 | . . . . . . . . . . . . . . . . . . . . 13 . . . . . Rewire . | . . . . . . . . . . . . . . . . . . . . . . . . . . Trap 7 | . . . . . . . . . . 6 . . . . . . . . 1 . . . . . . Miscellaneous . | . . . . . . . . . . . . . . . . . . . . . . . . . . Route ------- -11/Scrapyard -10/Materials (discovered 3 exits: *Mat x2 / [*Min]) -10/Mines (discovered 3 exits: *Mat x2 / [*Exi]) -9/Materials (discovered 4 exits: *Mat x3 / *Min) -9/Mines (discovered 2 exits: *Mat x2) -8/Materials (discovered 3 exits: *Fac x3) -7/Factory (discovered 4 exits: *Fac / *Sto / *Low x2) -7/Waste -7/Factory (discovered 5 exits: *Fac / *Sto x2 / *Low x2) -7/Lower Caves -7/Lower Caves (discovered 2 exits: Fac / *Dat) -7/Data Miner -6/Proximity Caves -6/Factory (discovered 2 exits: *Fac / *Low) -6/Waste -6/Factory (discovered 4 exits: *Fac x2 / *Low x2) -6/Lower Caves -6/Lower Caves -6/Zion -5/Proximity Caves -5/Factory (discovered 5 exits: *Fac x3 / *Upp x2) -5/Upper Caves -5/Upper Caves (discovered 2 exits: *Fac / *War) -5/Warlord -4/Proximity Caves -4/Factory History --------- Turn | Location | Event 11 | -11/Scrapyard | Discovered new exit (range 16) 46 | -11/Scrapyard | Entered Materials 271 | -10/Materials | Discovered new exit (range 12) 317 | -10/Materials | Build established: Mutant 389 | -10/Materials | Discovered new exit (range 16) 566 | -10/Materials | Discovered new exit (range 12) 731 | -10/Materials | Entered Mines 732 | -10/Mines | Assembled infested the area 837 | -10/Mines | Discovered new exit (range 14) 927 | -10/Mines | Met 8R-AWN 1017 | -10/Mines | Learned location of 1 exit from Materials 1475 | -10/Mines | Discovered new exit (range 9) 1531 | -10/Mines | Discovered new exit (range 5) 1998 | -10/Mines | Entered Materials 1998 | -9/Materials | Accompanied by 2 allies 1998 | -9/Materials | Evolved 2 slots: Propulsion x1, Utility x1 1999 | -9/Materials | Identified exit to Materials 2003 | -9/Materials | Led the pair of lost Derelicts to an unsafe place 2020 | -9/Materials | Identified exit to Mines 2561 | -9/Materials | Repaired Broken Cmb. Airjet 3164 | -9/Materials | Discovered exit to Materials (range 12) 3312 | -9/Materials | Lost 3 parts (1n2w) 3436 | -9/Materials | Discovered exit to Materials (range 16) 4081 | -9/Materials | Entered Mines 4081 | -9/Mines | Discovered exit to Materials (range 11) 4134 | -9/Mines | Found a damaged Exp. Sensor Array with a note attached 4137 | -9/Mines | Found Prototype Device 4137 | -9/Mines | Identified Exp. Sensor Array 4221 | -9/Mines | Assisted by bots powering up and referring to "LRC-V3" 4380 | -9/Mines | Learned Materials security intel 4388 | -9/Mines | Found the Drone Emporium 4403 | -9/Mines | Found Prototype Device 4483 | -9/Mines | Joined a pair of Derelicts in attacking an 0b10 outpost 4571 | -9/Mines | Discovered exit to Materials (range 8) 4574 | -9/Mines | Central database locked down 4586 | -9/Mines | Entered Materials 4586 | -8/Materials | Accompanied by 2 allies 4586 | -8/Materials | Evolved 2 slots: Propulsion x1, Utility x1 4591 | -8/Materials | Identified Bomb Drone Bay 4881 | -8/Materials | Build established: Scavenger-Mutant 5005 | -8/Materials | Discovered new exit (range 3) 5354 | -8/Materials | Discovered new exit (range 10) 5507 | -8/Materials | Build established: Mutant 5776 | -8/Materials | Discovered new exit (range 5) 6384 | -8/Materials | Identified exit to Factory 6385 | -8/Materials | Entered Factory 6385 | -7/Factory | Evolved 2 slots: Utility x2 6414 | -7/Factory | Discovered new exit (range 7) 6417 | -7/Factory | Identified exit to Lower Caves 6554 | -7/Factory | Fabricated Powered Hammer (x2) 6617 | -7/Factory | Fabricated C-17 Slicer? 6641 | -7/Factory | Discovered new exit (range 12) 6649 | -7/Factory | Identified exit to Storage 6667 | -7/Factory | Discovered new exit (range 16) 6697 | -7/Factory | Identified exit to Factory 6704 | -7/Factory | Build established: Hacker-Mutant 6903 | -7/Factory | Discovered exit to Lower Caves (range 8) 6933 | -7/Factory | Manually triggered Chute Trap 6933 | -7/Factory | Sucked down chute 6933 | -7/Factory | Entered Waste 6942 | -7/Waste | Spotted C-40 Crusher 6948 | -7/Waste | EMP discharged 6949 | -7/Waste | Spotted C-40 Crusher 6949 | -7/Waste | Spotted C-40 Crusher 6950 | -7/Waste | 1 allies followed down the chute 6953 | -7/Waste | Destroyed C-40 Crusher 6962 | -7/Waste | Destroyed C-40 Crusher 6962 | -7/Waste | Spotted C-40 Crusher 6964 | -7/Waste | Spotted C-40 Crusher 6974 | -7/Waste | Spotted C-40 Crusher 6981 | -7/Waste | Discovered new exit (range 11) 6984 | -7/Waste | Identified exit to Factory 6986 | -7/Waste | Entered Factory 7022 | -7/Factory | Discovered exit to Storage (range 13) 7142 | -7/Factory | Discovered exit to Factory (range 9) 7410 | -7/Factory | Fabricated Exp. Sensor Array? 7419 | -7/Factory | Repaired Exp. Sensor Array 7456 | -7/Factory | Repaired Adv. System Shield 7868 | -7/Factory | Found Prototype Launcher 7921 | -7/Factory | Identified Rocket Array 8282 | -7/Factory | Entered Lower Caves 8374 | -7/Lower Caves | Found Alien Artifact 8374 | -7/Lower Caves | Identified Core Expander 8374 | -7/Lower Caves | Installed Core Expander, added new Power slot 8497 | -7/Lower Caves | Attracted the attention of an 0b10 checkpoint 9027 | -7/Lower Caves | Discovered new exit (range 13) 9054 | -7/Lower Caves | Identified exit to Lower Caves 9055 | -7/Lower Caves | Entered another Lower Caves area 10690 | -7/Lower Caves | Discovered new exit (range 5) 10692 | -7/Lower Caves | Identified exit to Data Miner 10705 | -7/Lower Caves | Entered Data Miner 10705 | -7/Data Miner | Discovered new exit (range 7) 10713 | -7/Data Miner | Met Data Miner 10725 | -7/Data Miner | Learned location of Section 7 (-2) 10725 | -7/Data Miner | Acquired the access code to Warlord's prototype stash 10731 | -7/Data Miner | Received God Mode back door access code from Data Miner 10740 | -7/Data Miner | Identified exit to Proximity Caves 10741 | -7/Data Miner | Entered Proximity Caves 10835 | -6/Proximity Caves | Escorted by Enhanced Grunt 11112 | -6/Proximity Caves | Discovered exit to Factory (range 13) 11233 | -6/Proximity Caves | Entered Factory 11233 | -6/Factory | Evolved 2 slots: Propulsion x1, Utility x1 11314 | -6/Factory | Repaired Lgt. Deuterium Engine 11415 | -6/Factory | Repaired Adv. Energy Well 11706 | -6/Factory | Incoming investigation squad redirected 11758 | -6/Factory | Fabricated Lgt. Regenerative Plating (x1) 11777 | -6/Factory | Discovered new exit (range 9) 11847 | -6/Factory | Discovered new exit (range 4) 11889 | -6/Factory | Repaired Imp. Datajack 11929 | -6/Factory | Sucked down chute 11929 | -6/Factory | Entered Waste 11935 | -6/Waste | Spotted C-40 Crusher 11937 | -6/Waste | Spotted C-40 Crusher 11937 | -6/Waste | Spotted C-40 Crusher 11938 | -6/Waste | Spotted C-40 Crusher 11943 | -6/Waste | Warlord forces began an assault 11950 | -6/Waste | Allies destroyed C-40 Crusher 11953 | -6/Waste | Allies destroyed C-40 Crusher 11957 | -6/Waste | Allies destroyed C-40 Crusher 11958 | -6/Waste | Allies destroyed C-40 Crusher 11962 | -6/Waste | Destroyed C-40 Crusher 11987 | -6/Waste | Spotted C-40 Crusher 11988 | -6/Waste | Allies destroyed C-40 Crusher 12031 | -6/Waste | Discovered new exit (range 13) 12040 | -6/Waste | Identified exit to Factory 12304 | -6/Waste | Entered Factory 12304 | -6/Factory | Accompanied by 17 allies 12515 | -6/Factory | Discovered new exit (range 10) 12544 | -6/Factory | Identified exit to Factory 12628 | -6/Factory | Found Prototype Processor 12733 | -6/Factory | Identified Exp. Targeting Computer 12762 | -6/Factory | Repaired Aerolev Unit 12927 | -6/Factory | Discovered exit to Factory (range 11) 13168 | -6/Factory | Incoming investigation squad redirected 13206 | -6/Factory | Identified exit to Lower Caves 13582 | -6/Factory | Repaired Broken Exp. Targeting Computer 13617 | -6/Factory | Repaired Aerolev Unit 13631 | -6/Factory | Entered Lower Caves 13891 | -6/Lower Caves | Discovered new exit (range 16) 13911 | -6/Lower Caves | Identified exit to Lower Caves 13911 | -6/Lower Caves | Learned Factory terminal intel 13943 | -6/Lower Caves | Encountered a Warlord checkpoint 13966 | -6/Lower Caves | Entered another Lower Caves area 14001 | -6/Lower Caves | Encountered a Warlord checkpoint 14158 | -6/Lower Caves | Learned 4 Factory zone layouts 14398 | -6/Lower Caves | Discovered new exit (range 6) 14408 | -6/Lower Caves | Identified exit to Zion 14419 | -6/Lower Caves | Entered Zion 14426 | -6/Zion | Learned Factory emergency access door positions 14450 | -6/Zion | Discovered new exit (range 13) 14470 | -6/Zion | System corruption cleaned by Quarantine Array 14489 | -6/Zion | Learned location of Armory (-4) 14492 | -6/Zion | Learned Factory security intel 14547 | -6/Zion | Learned location of 1 exit from Proximity Caves 14664 | -6/Zion | Gained Derelict followers 14681 | -6/Zion | Gained Derelict followers 14795 | -6/Zion | Found CR-A16's Pointy Stick 14805 | -6/Zion | Identified exit to Proximity Caves 14947 | -6/Zion | Entered Proximity Caves 14947 | -5/Proximity Caves | Accompanied by 7 allies 14968 | -5/Proximity Caves | Encountered a Derelict sapper outpost 15136 | -5/Proximity Caves | Learned 4 Factory zone layouts 15181 | -5/Proximity Caves | Learned Factory terminal intel 15544 | -5/Proximity Caves | Received a Behemoth hack from an annoying Tinkerer 15633 | -5/Proximity Caves | Spotted B-75 Beast 15857 | -5/Proximity Caves | Entered Factory 15857 | -5/Factory | Evolved 2 slots: Propulsion x1, Utility x1 15861 | -5/Factory | Loaded intel: 25 terminal locations 15865 | -5/Factory | Discovered new exit (range 11) 15868 | -5/Factory | Identified exit to Upper Caves 15952 | -5/Factory | Discovered new exit (range 9) 15954 | -5/Factory | Identified exit to Factory 16170 | -5/Factory | Build established: Hacker-Sprinter 16489 | -5/Factory | Build established: Hacker-Mutant 16653 | -5/Factory | Discovered exit to Factory (range 13) 16704 | -5/Factory | Repaired Cld. Airjet 16760 | -5/Factory | Repaired Exp. Sensor Array 16791 | -5/Factory | Repaired Aerolev Unit 16866 | -5/Factory | Discovered exit to Factory (range 6) 17016 | -5/Factory | Discovered exit to Upper Caves (range 11) 17023 | -5/Factory | Entered Upper Caves 17040 | -5/Upper Caves | Learned Factory security intel 17071 | -5/Upper Caves | Learned location of Warlord (-5) 17213 | -5/Upper Caves | Discovered new exit (range 14) 17247 | -5/Upper Caves | Learned Research trap positions 17247 | -5/Upper Caves | Learned Armory garrison access intel 17286 | -5/Upper Caves | Identified exit to Upper Caves 17305 | -5/Upper Caves | Entered another Upper Caves area 17316 | -5/Upper Caves | Discovered exit to Factory (range 6) 18202 | -5/Upper Caves | Learned Factory interactive machine intel 18341 | -5/Upper Caves | Discovered new exit (range 8) 18346 | -5/Upper Caves | Identified exit to Warlord 18346 | -5/Upper Caves | Entered Warlord 18358 | -5/Warlord | System corruption cleaned by Quarantine Array 18390 | -5/Warlord | Met Warlord 18394 | -5/Warlord | Opened Warlord's prototype stash 18397 | -5/Warlord | Found Prototype Hackware 18397 | -5/Warlord | Identified System Mapper 18402 | -5/Warlord | Found Prototype Device 18402 | -5/Warlord | Identified System Purifier 18408 | -5/Warlord | Found Prototype Device 18408 | -5/Warlord | Identified Exp. Phase Shifter 18411 | -5/Warlord | Found Prototype Reactor 18414 | -5/Warlord | Found Prototype Processor 18415 | -5/Warlord | Warlord's base attacked by MAIN.C 18508 | -5/Warlord | Found Prototype Energy Cannon 18508 | -5/Warlord | Identified Vortex Cannon 18668 | -5/Warlord | Opened side exit 18683 | -5/Warlord | Discovered new exit (range 10) 18685 | -5/Warlord | Identified exit to Proximity Caves 18719 | -5/Warlord | Entered Proximity Caves 18719 | -4/Proximity Caves | Accompanied by 1 ally 18721 | -4/Proximity Caves | Attracted the attention of an 0b10 checkpoint 18952 | -4/Proximity Caves | Discovered exit to Factory (range 14) 18975 | -4/Proximity Caves | Entered Factory 18975 | -4/Factory | Evolved 2 slots: Propulsion x1, Utility x1 18977 | -4/Factory | Loaded intel: 50 interactive machine locations 18978 | -4/Factory | Loaded intel: 26 terminal locations 19090 | -4/Factory | Identified Exp. Core Analyzer 19091 | -4/Factory | Found Quantum Capacitor 19173 | -4/Factory | Repaired Adv. Heat Sink 19538 | -4/Factory | Incoming assault squad redirected 19549 | -4/Factory | Spotted Striker 19550 | -4/Factory | Cargo convoy interrupted 19550 | -4/Factory | Self-destructed Last Messages --------------- 19544_ Triggered Blade Trap. 19544_ Massive razor-sharp blades shoot up from within the floor. 19544_ Cld. Airjet severed. 19544_ Lgt. Regenerative Plating severed. 19544_ Adv. Heat Sink severed. 19544_ U-05 Engineer lays Concrete. 19549_ C-30 ARC bursts open, deploying its payload. 19549_ H-77 Assassin unfolds itself. 19549_ Striker unfolds itself. 19549_ X-77 Beamer unfolds itself. 19549_ X-82 Rainmaker unfolds itself. 19549_ M-36 Artificer unfolds itself. 19549_ Slug penetrates Assembly Bed. 19549_ Assembly Bed disabled. 19549_ K-01 Serf collects debris. 19550_ ALERT: Cargo convoy interrupted, initiating access lockdown. 19550_ C-30 ARC bursts open, deploying its payload. 19550_ H-77 Assassin unfolds itself. 19550_ P-70 Sage unfolds itself. 19550_ I-47 Archangel unfolds itself. Map ----- +----------------------------------------------------+ | ???????????????????????????????# +?"R"???????? | | ??????????????????????#######??# = #?"""???????? | | ??????????????????????# ??# !%!#???????????? | | ??????????????????????# ?# ########????? | | ??????????????????????# ?# #????? | | ??????????????????????# # !#????? | | ??????????????????????# # #????? | | ??????????????????????# + """""" #????? | | ??????????????????????# # """""" #????? | | ??????????????????????# # """""" #?"""" | | ??????????????????????# ?# """""" #?""T" | | ??????????????????????########?# #????? | | ???????????????????????????????# !"""""" +????? | | ???????????????????????????????#!="""""" ?????? | | ?????T?????????????????????????# " """" ??????? | | ???????????????????????????????# """""" #????? | | ???????????????????????????????# #????? | | ????????????????????????########s """""" #?? | | ????????????????????????# """""" ?????? | | ????????????????????????# """"""?????????? | | ????????????????????????# """""" ?????? | | ????????????????????????+ ] ????? | | ????????????????????????# ???? | | ????????????????????????# ######### ^ ????? | | ?????????????????######## #????????? ????? | | ?????????? k R%kpA@ #??????????????????? | | ?????????? g ihKhx #??????????????????? | | ??????????" ggh i m% #??????????????????? | | ??????????? R ghx #??????????????????? | | ???????????u #??????????????????? | | ???????????? ###############??????????????????? | | ???????????? ???????????????????????????????????? | | ?????????????????????????????????????????????????? | | ????????????????""???????????????????????????????? | | ????????????????"""??????????????????????????????? | | ?????????????????T"??????????????????????????????? | | ????????????????"""??????????????????????????????? | | ????????????????""???????????????????????????????? | | ?????????????????????????????????????????????????? | | ?????????????????????????????????????????????????? | | ?????????????????????????????????????????????????? | | ?????????????????????????????????????????????????? | | ?????????????"???????????????????????????????????? | | ????????????""???????????????????????????????????? | | ?????????????G???????????????????????????????????? | | ????????????""???????????????????????????????????? | | ?????????????"???????????????????????????????????? | | ?????????????????????????????????????????????????? | | ?????????????????????????????????????????????????? | | ?????????????????????????????????????????????????? | +----------------------------------------------------+ Best States ------------- Heat Dissipation 62 Energy Generation 28 Energy Capacity 350 Matter Stores 300 Matter Capacity 300 Sight Range 16 Robot Scan Range 20 Terrain Scan Density 10 Base Temperature (-) 200 Armor Coverage 675 Phase Shifting 20 Evasion (%) 65 Targeting Accuracy 12 Core Analysis 8 Particle Charging 20 Offensive Hacking 30 Defensive Hacking 14 Authchip Count 4 Item Schematics ----------------- Cmb. Airjet | -9/Materials | Scanalyzed Lrg. Storage Unit | -9/Mines | Hacked Exp. Sensor Array | -7/Factory | Scanalyzed Adv. System Shield | -7/Factory | Scanalyzed Adv. Cooling System | -7/Factory | Hacked Combat Drone Bay | -7/Data Miner | Free Lgt. Regenerative Plating | -7/Data Miner | Free Cld. Cesium-ion Thruster | -7/Data Miner | Free Gravity Neutralizer | -7/Data Miner | Free Gui. EMP Blaster | -7/Data Miner | Free Field Propulsion Drive | -7/Data Miner | Free Imp. Remote Datajack | -7/Data Miner | Free Imp. Transmission Jammer | -7/Data Miner | Free Drone Bay | -7/Data Miner | Free Imp. Dynamic Insulation System | -7/Data Miner | Free Centrium Wheel | -7/Data Miner | Free Adv. Reaction Control System | -7/Data Miner | Free Nanoactuators | -6/Factory | Hacked Adv. Target Analyzer | -6/Factory | Hacked Hyp. Coil Gun | -6/Factory | Hacked Exp. Targeting Computer | -6/Factory | Scanalyzed Adv. Component Analysis Suite | -5/Factory | Hacked Cld. Plasma Cannon | -5/Factory | Scanalyzed Robot Schematics ------------------ G-47 Trooper | -7/Data Miner | Free M-22 Extractor | -7/Data Miner | Free A-15 Conveyor | -7/Data Miner | Free S-27 Virus | -7/Data Miner | Free B-60 Warrior | -7/Data Miner | Free Y-54 Guardian | -7/Data Miner | Free H-66 Slayer | -6/Factory | Hacked Fabricated ------------ Powered Hammer | x2 | -7/Factory | Preloaded C-17 Slicer | x3 | -7/Factory | Preloaded Exp. Sensor Array | x1 | -7/Factory Lgt. Regenerative Plating | x1 | -6/Factory Alien Tech Used ----------------- Core Expander Achievements -------------- None Challenges ------------ None Game ------ Seed ComponentFusionExpander Manual? 0 Play Time 05:08:30 Cumulative 912.2 hours Start 2022.05.15 @ 20:38:50 End 2022.08.21 @ 17:19:40 Sessions 9 Manual Loads 0 Difficulty Rogue Special Mode None Game No. 466 Rogue 466 Adventurer 0 Explorer 0 Win Type - Total 68 Types 38/5/14/6/1/1/3/0/0 Lore% 88 Gallery% 89 Achievement% 76 Wizard Run 0 Options --------- ASCII 0 Keyboard 0 Movement Mouse Keybinds 0 Fullscreen 1 Font 28/SmallcapsLarge Map View 72x54 Tactical HUD 1 Map Filters NONE Filters NONE Steam 0 RUN: 8b9340cf-6860-4f35-8ecb-3a5372202134